{"text_format":"1","workbook":"xlsx","n_sheets":3,"sheets":["Cover","Parameters","Results"],"not_rendered":{"charts":0,"images":0,"macros":1,"external_links":0,"defined_names":0,"comments":0,"pivot_tables":0},"unopened":[],"bounds":{"document_bytes":16777216,"sheet_cells":100000,"rows_first":2000,"rows_last":500,"rows_between":2000,"halvings":0,"cell_chars":16384,"cell_head_chars":4096},"cells_cut":0,"cells_raw":0,"read":"whole","date_system":"1900"}

{"sheet":"Cover","index":0,"n_rows":8,"n_cols":10,"rows_kept":8,"cut":false,"hidden":false,"merged":[]}
[]
[null,"3GPP TSG-RAN WG4 Meeting #97-e",null,null,null,null,null,null,null,"R4-2015862"]
[null,"Electronic meeting,  2nd - 13th November, 2020"]
[]
[null,"Source: Moderator (Ericsson)"]
[null,"Title: Summary of ideal and impairment results for ultra-low BLER for UE"]
[null,"Agenda: 7.8.1.1.1"]
[null,"Document for: Information"]

{"sheet":"Parameters","index":1,"n_rows":12,"n_cols":5,"rows_kept":12,"cut":false,"hidden":false,"merged":[[1,2,1,4],[7,2,7,4],[6,2,6,4]]}
[]
[null,null,"Parameters for deriving performance requirements"]
[null,null,"Ideal Span Threshold",2,"dB"]
[null,null,"Impairment Span Threshold",4,"dB"]
[]
[]
[null,"Notes","1. Call function DerivingPerfReq()"]
[null,null,"2. If the ruls does not apply, or fails, -100dB or less will be returned"]
[null,null,null,-100,"Not enough input"]
[null,null,null,-101,"Input should be pairs"]
[null,null,null,-102,"Too large span for impairment"]
[null,null,null,-103,"After removal iteration, not enough input"]

{"sheet":"Results","index":2,"n_rows":6,"n_cols":29,"rows_kept":6,"cut":false,"hidden":false,"merged":[[0,27,0,28],[0,15,0,16],[0,17,0,18],[0,19,0,20],[0,21,0,22],[0,23,0,24],[0,25,0,26],[0,13,0,14],[0,0,1,0],[0,1,1,1],[0,2,1,2],[0,3,1,3],[0,4,1,4],[0,5,1,5],[0,6,1,6],[0,7,1,7],[0,8,1,8],[0,9,0,10],[0,11,0,12]]}
[" waveform","Tx/Rx","PDSCH mapping type","SCS and BW","MCS level","Propagation condition","DMRS","req",null,"Ericsson",null,"Huawei",null,"Apple",null,"Intel",null,"Qualcomm",null,null,null,null,null,null,null,"SPAN",null,"AVERAGE"]
[null,null,null,null,null,null,null,null,null,"Ideal","Impairment","Ideal","Impairment","Ideal","Impairment","Ideal","Impairment","Ideal","Impairment","Ideal","Impairment","Ideal","Impairment","Ideal","Impairment","Ideal","Impairment","Ideal","Impairment"]
["CP-OFDM","1T2R","type A","15kHz, 10MHz","MCS14","AWGN","DMRS 1+1",{"$f":"DerivingPerfReq(J3:Y3)","v":2.7},null,0.7,3.2,0.2,2.2000000000000002,0.1,2.1,0.5,2.5,1.5,3.5,null,null,null,null,null,null,{"$f":"MAX(J3,L3,N3,P3,R3,T3,V3,X3)-MIN(J3,L3,N3,P3,R3,T3,V3,X3)","v":1.4},{"$f":"MAX(K3,M3,O3,Q3,S3,U3,W3,Y3)-MIN(K3,M3,O3,Q3,S3,U3,W3,Y3)","v":1.4},{"$f":"AVERAGE(J3,L3,N3,P3,R3,T3,V3,X3)","v":0.6},2.7]
["CP-OFDM","1T2R","type A","30kHz, 40MHz","MCS14","AWGN","DMRS 1+1",{"$f":"DerivingPerfReq(J4:Y4)","v":2.8},null,0.7,3.2,0.5,2.5,0.2,2.2000000000000002,0.4,2.4,1.5,3.5,null,null,null,null,null,null,{"$f":"MAX(J4,L4,N4,P4,R4,T4,V4,X4)-MIN(J4,L4,N4,P4,R4,T4,V4,X4)","v":1.3},1.2999999999999998,0.65999999999999992,2.7600000000000002]
["CP-OFDM","1T4R","type A","15kHz, 10MHz","MCS14","AWGN","DMRS 1+1",{"$f":"DerivingPerfReq(J5:Y5)","v":0.1},null,-1.8,0.6,-2.2999999999999998,-0.3,-2.7,-0.7,-1.7,0.3,-1.5,0.5,null,null,null,null,null,null,1.2000000000000002,1.2999999999999998,-2,0.08]
["CP-OFDM","1T4R","type A","30kHz, 40MHz","MCS14","AWGN","DMRS 1+1",{"$f":"DerivingPerfReq(J6:Y6)","v":0.2},null,-1.8,0.6,-2.2999999999999998,-0.3,-2.5,-0.5,-1.9,0.1,-0.74,1.26,null,null,null,null,null,null,1.76,1.76,-1.8480000000000001,0.23199999999999998]